fUST/lending_fUST_20250413
["ID","MTS","AMOUNT","RATE_DAILY","PERIOD"]
[357902238,1744545003123,175.74935954,0.000199,30]
[357902239,1744545018535,-15.57339771,0.00018899,2]
[357902240,1744545018566,-169.42368943,0.00018899,2]
[357902248,1744545032329,-60.74389842,0.00018899,2]
[357902249,1744545032345,-353.36659908,0.00018899,2]
[357902250,1744545032367,-146.63340092,0.00018899,2]
[357902251,1744545032381,-6241.74145182,0.000189,2]
[357902252,1744545033207,-285.69646082,0.000189,2]
[357902289,1744545038593,-844.22,0.000189,2]
[357902367,1744545041287,-153.47590988,0.000189,2]
[357902517,1744545043414,-528.40859741,0.000189,2]
[357902523,1744545045608,-153.47590988,0.000189,2]
[357902534,1744545046581,-654.40000005,0.000189,2]
[357902535,1744545059194,218.0,0.00025,10]
[357902536,1744545067101,-192.70139468,0.00018899,2]
[357902537,1744545067680,-107.29860532,0.00018899,2]
[357902538,1744545067704,-85.40278936,0.000189,2]
[357902539,1744545073298,-250.0,0.000189,2]
[357902540,1744545078572,-210.20099996,0.00018799,2]
[357902541,1744545103597,500.0,0.00025,10]
[357902542,1744545122846,-39.79900004,0.00018799,2]
[357902543,1744545122870,-246.93386356,0.00018899,2]
[357902544,1744545145830,-234.15551216,0.00018799,2]
[357902545,1744545151861,-184.03269337,0.00018799,2]
[357902546,1744545181966,-183.87793091,0.00018799,2]
[357902547,1744545204211,-200.0,0.00018799,2]
[357902548,1744545209530,-95.86772713,0.00018799,2]
[357902549,1744545209558,-63.49565327,0.00018899,2]
[357902550,1744545242719,-200.0,0.000189,2]
[357902551,1744545256058,-250.0,0.00018218,2]
[357902552,1744545291375,-180.4983712,0.00018218,2]
[357902553,1744545291398,-119.5016288,0.00018699,2]
[357902554,1744545302418,-207.94309038,0.00018699,2]
[357902555,1744545316238,-151.0,0.00018699,2]
[357902556,1744545321697,-123.62141726,0.00018699,2]
[357902557,1744545321720,-327.44471918,0.00018899,2]
[357902558,1744545326180,-151.0,0.00018899,2]
[357902559,1744545362040,-21.55528082,0.00018899,2]
[357902560,1744545362063,-178.44471918,0.000189,2]
[357902561,1744545374185,-184.24109139,0.00018173,2]
[357902562,1744545422119,-237.9951355,0.00018154,2]
[357902563,1744545433329,-151.0,0.00018154,2]
[357902564,1744545452734,-169.60459693,0.00018154,2]
[357902565,1744545483445,-158.56468884,0.00018154,2]
[357902566,1744545489448,-167.72859202,0.00018154,2]
[357902567,1744545492709,-158.66768843,0.00018041,2]
[357902568,1744545512014,-43.13203487,0.00018041,2]
[357902569,1744545512037,-195.91661237,0.00018154,2]
[357902570,1744545544681,-300.0,0.00018154,2]
[357902571,1744545547478,-126.89296804,0.00018154,2]
[357902572,1744545547501,-65.75890861,0.00018173,2]
[357902573,1744545547523,-93.0760311,0.00018799,2]
[357902574,1744545548613,-508.99010534,0.00018799,2]
[357902575,1744545552154,-430.06679772,0.000188,2]
[357902576,1744545569708,-69.93320228,0.000188,2]
[357902577,1744545569732,-248.21615533,0.00018899,2]
[357902578,1744545578921,-51.78384467,0.00018899,2]
[357902579,1744545578945,-321.00251081,0.000189,2]
[357902580,1744545598225,-213.32309343,0.000188,2]
[357902581,1744545610307,-286.67690657,0.000188,2]
[357902582,1744545610334,-145.04630733,0.000188,2]
[357902583,1744545616431,-359.38679433,0.000188,2]
[357902584,1744545655504,-465.01959936,0.000188,2]
[357902585,1744545663823,-175.59360631,0.00018799,2]
[357902586,1744545684611,-124.40639369,0.00018799,2]
[357902587,1744545684634,-30.54729898,0.000188,2]
[357902588,1744545684655,-70.94616895,0.000188,2]
[357902589,1744545693460,-175.10013838,0.000188,2]
[357902590,1744545696990,500.0,0.00027,30]
[357902591,1744545711650,-290.23473368,0.000188,2]
[357902592,1744545784284,-151.0,0.00018146,2]
[357902593,1744545804886,-275.08281078,0.00018146,2]
[357902594,1744545808025,-350.7358884,0.00018146,2]
[357902595,1744545843786,-299.99000132,0.00018146,2]
[357902596,1744545843810,-119.4533358,0.00018699,2]
[357902597,1744545850851,-130.5466642,0.00018699,2]
[357902598,1744545850875,-91.8461802,0.00018699,2]
[357902599,1744545866170,-166.7946333,0.00018699,2]
[357902600,1744545876012,-250.0,0.00018081,2]
[357902601,1744545905619,-536.395952,0.00018081,2]
[357902609,1744545965057,-206.8472002,0.00018699,2]
[357902610,1744545972090,-245.9325562,0.00018081,2]
[357902611,1744545996681,-310.82727415,0.0001808,2]
[357902613,1744546022045,-166.4509017,0.0001808,2]
[357902615,1744546064118,-166.4509017,0.00018046,2]
[357902616,1744546112270,-431.7232139,0.00018055,2]
[357902621,1744546232491,-135.72182415,0.0001808,2]
[357902622,1744546232502,-912.7019333,0.00018081,2]
[357902623,1744546232513,-534.5119863,0.00018699,2]
[357902624,1744546232522,-4963.71895899,0.000188,2]
[357902625,1744546232532,-6977.40994392,0.000189,2]
[357902626,1744546232542,-1879.36265562,0.000189,2]
[357902627,1744546232552,-274.1491498,0.000189,2]
[357902628,1744546232561,-20247.60119964,0.00018986,2]
[357902629,1744546232571,-307.38961658,0.00018986,3]
[357902630,1744546232582,-791.25598087,0.00018986,2]
[357902679,1744546238722,-217.97754366,0.000189,3]
[357902681,1744546238732,-472.73834019,0.00018985,2]
[357902683,1744546238742,-187.43938641,0.00018985,2]
[357902685,1744546238751,-1473.93432844,0.00018986,2]
[357902716,1744546239162,-604.11204123,0.00018986,2]
[357902822,1744546241462,-603.93541922,0.00018986,2]
[357902861,1744546244499,-41642.16100114,0.00018986,2]
[357902872,1744546391288,-556.80661106,0.00018799,2]
[357902887,1744546475399,-250.0,0.00018069,2]
[357902888,1744546475424,-56.10811017,0.00018799,2]
[357902898,1744546636998,-175.43706077,0.00018799,2]
[357902899,1744546637023,-124.56293923,0.000188,2]
[357902900,1744546686948,-200.0,0.000188,2]
[357902901,1744546703615,151.0,0.00027,30]
[357902902,1744546742338,-237.9951355,0.00018059,2]
[357902903,1744546802647,-300.0,0.00018068,2]
[357902904,1744546802672,-645.85684651,0.00018069,2]
[357902905,1744546827226,-211.12062847,0.00018069,2]
[357902906,1744546827423,-211.12062847,0.00018069,2]
[357902907,1744546833408,-275.07509148,0.00018068,2]
[357902908,1744546863631,-300.0,0.00018067,2]
[357902911,1744546923099,-300.0,0.00018067,2]
[357902913,1744546984733,-152.18463873,0.00018067,2]
[357902914,1744547081589,7083.68873032,0.00025,10]
[357902915,1744547104199,-242.68258862,0.00018067,2]
[357902916,1744547107423,-57.31741138,0.00018067,2]
[357902917,1744547107477,-132.60662819,0.00018068,2]
[357902922,1744547164761,-199.35156706,0.00018067,2]
[357902929,1744547287399,1275.0,0.000155,2]
[357902982,1744547431731,-419.75636919,0.000175,4]
[357902984,1744547431741,-300.0,0.00018067,2]
[357902986,1744547431751,-92.31828033,0.00018068,2]
[357902988,1744547431761,-500.0,0.00018068,2]
[357902990,1744547431771,-500.0,0.00018068,2]
[357902992,1744547431781,-500.0,0.00018068,2]
[357902994,1744547431792,-500.0,0.00018068,2]
[357902997,1744547431804,-500.0,0.00018068,2]
[357902999,1744547431814,-649.59799332,0.00018068,2]
[357903001,1744547431824,-10709.48840275,0.00018069,2]
[357903003,1744547431834,-3216.78151912,0.0001807,2]
[357903005,1744547431843,-347.585348,0.0001807,2]
[357903007,1744547431853,-306.27128011,0.000187,2]
[357903009,1744547431863,-197.43706077,0.000188,2]
[357903011,1744547431872,-242.68258862,0.000189,2]
[357903013,1744547431882,-1000.0,0.00018904,2]
[357903015,1744547431893,-5888.02334207,0.00018986,2]
[357903017,1744547431906,-1772.50253224,0.00019073,2]
[357903019,1744547431916,-1772.50253224,0.00019074,2]
[357903021,1744547431925,-1772.50253224,0.00019074,2]
[357903023,1744547431934,-1772.50253224,0.00019075,2]
[357903025,1744547431944,-1772.50253224,0.00019076,2]
[357903027,1744547431953,-1772.50253224,0.00019077,2]
[357903029,1744547431963,-1772.50253224,0.00019077,2]
[357903031,1744547431972,-1772.50253224,0.00019078,2]
[357903034,1744547431982,-188.087,0.00019166,2]
[357903036,1744547431992,-151.0,0.00019166,2]
[357903038,1744547432001,-444.7344047,0.00019172,2]
[357903040,1744547432011,-500.0,0.00019173,2]
[357903042,1744547432020,-246.81545418,0.00019173,2]
[357903044,1744547432030,-500.0,0.00019173,2]
[357903046,1744547432040,-500.0,0.00019173,2]
[357903048,1744547432049,-500.0,0.00019173,2]
[357903049,1744547432059,-500.0,0.00019173,2]
[357903050,1744547432068,-500.0,0.00019173,2]
[357903051,1744547432078,-500.0,0.00019173,2]
[357903052,1744547432087,-500.0,0.00019173,2]
[357903053,1744547432096,-500.0,0.00019173,2]
[357903054,1744547432106,-500.0,0.00019173,2]
[357903055,1744547432116,-285.72790775,0.00019173,2]
[357903056,1744547432126,-500.0,0.00019173,2]
[357903057,1744547432136,-500.0,0.00019173,2]
[357903058,1744547432145,-535.18314526,0.00019173,2]
[357903059,1744547432154,-500.0,0.00019173,2]
[357903060,1744547432165,-500.0,0.00019173,2]
[357903061,1744547432175,-500.0,0.00019173,2]
[357903062,1744547432185,-243.69349238,0.00019173,2]
[357903063,1744547432194,-500.0,0.00019173,2]
[357903064,1744547432204,-500.0,0.00019173,2]
[357903065,1744547432214,-500.95604622,0.00019173,2]
[357903066,1744547432224,-500.0,0.00019173,2]
[357903067,1744547432234,-500.0,0.00019173,2]
[357903068,1744547432244,-500.0,0.00019173,2]
[357903069,1744547432254,-609.68623438,0.00019173,2]
[357903070,1744547432264,-500.0,0.00019173,2]
[357903071,1744547432274,-25969.12754171,0.00019173,2]
[357903072,1744547432284,-153.69480829,0.00019173,3]
[357903073,1744547432293,-500.0,0.00019173,2]
[357903074,1744547432303,-434.457228,0.00019173,2]
[357903075,1744547432312,-241.59141047,0.00019173,2]
[357903076,1744547432322,-500.0,0.00019173,2]
[357903077,1744547432332,-500.0,0.00019173,2]
[357903078,1744547432343,-500.0,0.00019173,2]
[357903079,1744547432352,-500.0,0.00019173,2]
[357903080,1744547432362,-500.0,0.00019173,2]
[357903081,1744547432374,-165.61349575,0.00019173,2]
[357903082,1744547432383,-500.0,0.00019173,2]
[357903083,1744547432393,-500.0,0.00019173,2]
[357903084,1744547432403,-505.58563258,0.00019173,2]
[357903085,1744547432412,-520.61941539,0.00019173,2]
[357903086,1744547432423,-500.0,0.00019173,2]
[357903087,1744547432433,-269.83241215,0.00019173,2]
[357903088,1744547432443,-500.0,0.00019173,2]
[357903089,1744547432454,-500.0,0.00019173,2]
[357903090,1744547432464,-499.64,0.00019173,2]
[357903091,1744547432748,-500.0,0.00019173,2]
[357903092,1744547432759,-507.30344321,0.00019173,2]
[357903093,1744547432768,-500.0,0.00019173,2]
[357903094,1744547432777,-500.0,0.00019173,2]
[357903095,1744547432787,-500.0,0.00019173,2]
[357903096,1744547432797,-151.0,0.00019173,2]
[357903097,1744547432806,-151.0,0.00019173,2]
[357903098,1744547432815,-151.0,0.00019173,2]
[357903099,1744547432824,-151.0,0.00019173,2]
[357903100,1744547432833,-154.849818,0.00019173,2]
[357903101,1744547432842,-151.0,0.00019173,2]
[357903102,1744547432851,-151.0,0.00019173,2]
[357903103,1744547432860,-151.0,0.00019173,2]
[357903104,1744547432870,-151.0,0.00019173,2]
[357903105,1744547432879,-151.0,0.00019173,2]
[357903106,1744547432888,-151.0,0.00019173,2]
[357903107,1744547432897,-151.0,0.00019173,2]
[357903108,1744547432906,-151.0,0.00019173,2]
[357903109,1744547432916,-151.0,0.00019173,2]
[357903110,1744547432925,-151.0,0.00019173,2]
[357903111,1744547432935,-151.159272,0.00019173,2]
[357903112,1744547432945,-151.0,0.00019173,2]
[357903113,1744547432954,-151.0,0.00019173,2]
[357903114,1744547432963,-151.0,0.00019173,2]
[357903115,1744547432972,-151.0,0.00019173,2]
[357903116,1744547432981,-151.0,0.00019173,2]
[357903117,1744547432990,-151.0,0.00019173,2]
[357903118,1744547432999,-153.170025,0.00019173,2]
[357903119,1744547433010,-151.0,0.00019173,2]
[357903120,1744547433019,-151.0,0.00019173,2]
[357903121,1744547433029,-151.0,0.00019173,2]
[357903122,1744547433038,-151.0,0.00019173,2]
[357903123,1744547433047,-151.0,0.00019173,2]
[357903124,1744547433056,-173.71071,0.00019173,2]
[357903125,1744547433065,-151.0,0.00019173,2]
[357903126,1744547433075,-268.228497,0.00019173,2]
[357903127,1744547433084,-203.61031,0.00019173,2]
[357903128,1744547433093,-203.61031,0.00019173,2]
[357903129,1744547433102,-203.61031,0.00019173,2]
[357903130,1744547433112,-203.61031,0.00019173,2]
[357903131,1744547433121,-203.61031,0.00019173,2]
[357903132,1744547433130,-203.61031,0.00019173,2]
[357903133,1744547433140,-203.61031,0.00019173,2]
[357903134,1744547433149,-203.61031,0.00019173,2]
[357903135,1744547433158,-203.61031,0.00019173,2]
[357903136,1744547433168,-203.61031,0.00019173,2]
[357903137,1744547433177,-1754.513595,0.00019173,2]
[357903138,1744547433187,-1754.513595,0.00019173,2]
[357903139,1744547433196,-1754.513595,0.00019173,2]
[357903140,1744547433206,-1754.513595,0.00019173,2]
[357903141,1744547433216,-1754.513595,0.00019173,2]
[357903142,1744547433225,-151.0,0.00019173,2]
[357903143,1744547433235,-151.0,0.00019173,2]
[357903144,1744547433246,-151.0,0.00019173,2]
[357903145,1744547433256,-151.0,0.00019173,2]
[357903146,1744547433265,-151.0,0.00019173,2]
[357903147,1744547433275,-151.0,0.00019173,2]
[357903148,1744547433284,-151.0,0.00019173,2]
[357903149,1744547433294,-151.0,0.00019173,2]
[357903150,1744547433303,-151.0,0.00019173,2]
[357903151,1744547433313,-151.0,0.00019173,2]
[357903152,1744547433323,-151.0,0.00019173,2]
[357903153,1744547433332,-151.0,0.00019173,2]
[357903154,1744547433342,-151.0,0.00019173,2]
[357903155,1744547433351,-151.0,0.00019173,2]
[357903156,1744547433361,-151.0,0.00019173,2]
[357903157,1744547433371,-402.745747,0.00019173,2]
[357903158,1744547433380,-402.745747,0.00019173,2]
[357903159,1744547433390,-402.745747,0.00019173,2]
[357903160,1744547433400,-779.396912,0.00019173,2]
[357903161,1744547433410,-779.396912,0.00019173,2]
[357903162,1744547433420,-779.396912,0.00019173,2]
[357903163,1744547433430,-779.396912,0.00019173,2]
[357903164,1744547433440,-779.396912,0.00019173,2]
[357903165,1744547433450,-402.745747,0.00019173,2]
[357903166,1744547433460,-779.396912,0.00019173,2]
[357903167,1744547433470,-779.396912,0.00019173,2]
[357903168,1744547433480,-779.396912,0.00019173,2]
[357903169,1744547433489,-779.396912,0.00019173,2]
[357903170,1744547433499,-402.745747,0.00019173,2]
[357903171,1744547433509,-779.396912,0.00019173,2]
[357903172,1744547433518,-402.745747,0.00019173,2]
[357903173,1744547433528,-151.0,0.00019173,2]
[357903174,1744547433538,-151.0,0.00019173,2]
[357903175,1744547433548,-151.0,0.00019173,2]
[357903176,1744547433558,-151.0,0.00019173,2]
[357903177,1744547433568,-881.704325,0.00019173,2]
[357903178,1744547433578,-881.704325,0.00019173,2]
[357903179,1744547433588,-881.704325,0.00019173,2]
[357903180,1744547433598,-881.704325,0.00019173,2]
[357903181,1744547433608,-881.704325,0.00019173,2]
[357903182,1744547433617,-881.704325,0.00019173,2]
[357903183,1744547433627,-881.704325,0.00019173,2]
[357903184,1744547433637,-881.704325,0.00019173,2]
[357903185,1744547433646,-881.704325,0.00019173,2]
[357903186,1744547433656,-881.704325,0.00019173,2]
[357903187,1744547433666,-881.704325,0.00019173,2]
[357903188,1744547433677,-881.704325,0.00019173,2]
[357903189,1744547433686,-151.0,0.00019173,2]
[357903190,1744547433696,-151.0,0.00019173,2]
[357903191,1744547433706,-151.0,0.00019173,2]
[357903192,1744547433716,-151.0,0.00019173,2]
[357903193,1744547433728,-152.07867,0.00019173,2]
[357903194,1744547433737,-151.0,0.00019173,2]
[357903195,1744547433747,-151.0,0.00019173,2]
[357903196,1744547433757,-151.0,0.00019173,2]
[357903197,1744547433767,-151.0,0.00019173,2]
[357903198,1744547433776,-151.0,0.00019173,2]
[357903199,1744547433786,-151.0,0.00019173,2]
[357903200,1744547433796,-158.238088,0.00019173,2]
[357903201,1744547433807,-220.667118,0.00019173,2]
[357903202,1744547433818,-220.667118,0.00019173,2]
[357903203,1744547433828,-220.667118,0.00019173,2]
[357903204,1744547433838,-220.667118,0.00019173,2]
[357903205,1744547433848,-220.667118,0.00019173,2]
[357903206,1744547433858,-220.667118,0.00019173,2]
[357903207,1744547433867,-220.667118,0.00019173,2]
[357903208,1744547433877,-220.667118,0.00019173,2]
[357903209,1744547433887,-220.667118,0.00019173,2]
[357903210,1744547433898,-220.667118,0.00019173,2]
[357903211,1744547433908,-220.667118,0.00019173,2]
[357903212,1744547433918,-220.667118,0.00019173,2]
[357903213,1744547433928,-151.0,0.00019173,2]
[357903214,1744547433938,-151.0,0.00019173,2]
[357903215,1744547433948,-151.0,0.00019173,2]
[357903216,1744547433958,-151.0,0.00019173,2]
[357903217,1744547433968,-151.0,0.00019173,2]
[357903218,1744547433978,-151.0,0.00019173,2]
[357903219,1744547433988,-267.512016,0.00019173,2]
[357903220,1744547433998,-1500.0,0.00019178,2]
[357903221,1744547434007,-1500.0,0.00019178,2]
[357903222,1744547434017,-1500.0,0.00019178,2]
[357903223,1744547434026,-1500.0,0.00019178,2]
[357903224,1744547434036,-1500.0,0.00019178,2]
[357903225,1744547434045,-1500.0,0.00019178,2]
[357903226,1744547434056,-1500.0,0.00019178,2]
[357903227,1744547434065,-1500.0,0.00019178,2]
[357903228,1744547434075,-1500.0,0.00019178,2]
[357903229,1744547434085,-1500.0,0.00019178,2]
[357903230,1744547434094,-1500.0,0.00019178,2]
[357903231,1744547434103,-1500.0,0.00019178,2]
[357903232,1744547434113,-1500.0,0.00019178,2]
[357903233,1744547434123,-1500.0,0.00019178,2]
[357903234,1744547434132,-1000.0,0.00019178,2]
[357903235,1744547434142,-151.0,0.00019178,2]
[357903236,1744547434152,-151.0,0.00019178,2]
[357903237,1744547434162,-151.0,0.00019178,2]
[357903238,1744547434172,-151.0,0.00019178,2]
[357903239,1744547434182,-151.0,0.00019178,2]
[357903240,1744547434192,-151.0,0.00019178,2]
[357903241,1744547434201,-151.0,0.00019178,2]
[357903242,1744547434211,-151.0,0.00019178,2]
[357903243,1744547434221,-151.0,0.00019178,2]
[357903244,1744547434231,-151.0,0.00019178,2]
[357903245,1744547434241,-244.320395,0.00019178,2]
[357903246,1744547434250,-151.0,0.00019178,2]
[357903247,1744547434260,-151.0,0.00019178,2]
[357903248,1744547434270,-151.0,0.00019178,2]
[357903249,1744547434280,-151.0,0.00019178,2]
[357903250,1744547434290,-151.0,0.00019178,2]
[357903251,1744547434299,-151.0,0.00019178,2]
[357903252,1744547434309,-151.0,0.00019178,2]
[357903253,1744547434319,-151.0,0.00019178,2]
[357903254,1744547434328,-153.755037,0.00019178,2]
[357903255,1744547434338,-1012.683784,0.00019178,2]
[357903256,1744547434347,-1012.683784,0.00019178,2]
[357903257,1744547434357,-1012.683784,0.00019178,2]
[357903258,1744547434366,-1012.683784,0.00019178,2]
[357903259,1744547434375,-1012.683784,0.00019178,2]
[357903260,1744547434384,-1012.683784,0.00019178,2]
[357903261,1744547434394,-1012.683784,0.00019178,2]
[357903262,1744547434403,-1012.683784,0.00019178,2]
[357903263,1744547434413,-1012.683784,0.00019178,2]
[357903264,1744547434423,-1012.683784,0.00019178,2]
[357903265,1744547434432,-1012.683784,0.00019178,2]
[357903266,1744547434442,-1012.683784,0.00019178,2]
[357903267,1744547434452,-1012.683784,0.00019178,2]
[357903268,1744547434462,-1012.683784,0.00019178,2]
[357903269,1744547434472,-1012.683784,0.00019178,2]
[357903270,1744547434482,-1012.683784,0.00019178,2]
[357903271,1744547434492,-1012.683784,0.00019178,2]
[357903272,1744547434502,-1012.683784,0.00019178,2]
[357903273,1744547434511,-1012.683784,0.00019178,2]
[357903274,1744547434521,-1012.683789,0.00019178,2]
[357903275,1744547434531,-500.0,0.00019178,2]
[357903276,1744547434540,-500.0,0.00019178,2]
[357903277,1744547434550,-500.0,0.00019178,2]
[357903278,1744547434560,-500.0,0.00019178,2]
[357903279,1744547434570,-500.0,0.00019178,2]
[357903280,1744547434580,-500.0,0.00019178,2]
[357903281,1744547434590,-500.0,0.00019178,2]
[357903282,1744547434599,-500.0,0.00019178,2]
[357903283,1744547434609,-500.0,0.00019178,2]
[357903284,1744547434619,-500.0,0.00019178,2]
[357903285,1744547434628,-500.0,0.00019178,2]
[357903286,1744547434638,-500.0,0.00019178,2]
[357903287,1744547434648,-500.0,0.00019178,2]
[357903288,1744547434658,-500.0,0.00019178,2]
[357903289,1744547434667,-200.66832131,0.00019178,2]
[357903290,1744547434678,-546.2696936,0.00019178,2]
[357903291,1744547434688,-500.0,0.00019178,2]
[357903292,1744547434698,-500.0,0.00019178,2]
[357903293,1744547434707,-500.0,0.00019178,2]
[357903294,1744547434720,-500.0,0.00019178,2]
[357903295,1744547434730,-500.0,0.00019178,2]
[357903296,1744547434740,-500.0,0.00019178,2]
[357903297,1744547434750,-500.0,0.00019178,2]
[357903298,1744547434760,-638.03382397,0.00019178,2]
[357903299,1744547434769,-251.71237328,0.00019178,2]
[357903300,1744547434778,-500.0,0.00019178,2]
[357903301,1744547434788,-346.49175202,0.00019178,2]
[357903302,1744547434798,-151.0,0.00019178,2]
[357903303,1744547434807,-151.0,0.00019178,2]
[357903304,1744547434817,-151.0,0.00019178,2]
[357903305,1744547434826,-300.821725,0.00019178,2]
[357903306,1744547434835,-500.0,0.00019178,2]
[357903307,1744547434848,-500.0,0.00019178,2]
[357903308,1744547434858,-500.0,0.00019178,2]
[357903309,1744547434869,-392.07203524,0.00019178,2]
[357903310,1744547434879,-500.0,0.00019178,2]
[357903311,1744547434888,-516.3920695,0.00019178,2]
[357903312,1744547434898,-500.0,0.00019178,2]
[357903313,1744547434907,-500.0,0.00019178,2]
[357903314,1744547434916,-500.0,0.00019178,2]
[357903315,1744547434927,-500.0,0.00019178,2]
[357903316,1744547434936,-500.0,0.00019178,2]
[357903317,1744547434946,-500.0,0.00019178,2]
[357903318,1744547434955,-500.0,0.00019178,2]
[357903319,1744547434965,-154.47024922,0.00019178,2]
[357903320,1744547434974,-1174.37,0.00019178,2]
[357903321,1744547434983,-1174.37,0.00019178,2]
[357903322,1744547434993,-1174.37,0.00019178,2]
[357903323,1744547435002,-1174.37,0.00019178,2]
[357903324,1744547435011,-1174.37,0.00019178,2]
[357903325,1744547435021,-1174.37,0.00019178,2]
[357903326,1744547435032,-1174.37,0.00019178,2]
[357903327,1744547435041,-1174.37,0.00019178,2]
[357903328,1744547435050,-1174.37,0.00019178,2]
[357903329,1744547435059,-1174.37,0.00019178,2]
[357903330,1744547435069,-1174.37,0.00019178,2]
[357903331,1744547435078,-1174.37,0.00019178,2]
[357903332,1744547435088,-1174.37,0.00019178,2]
[357903333,1744547435097,-1174.37,0.00019178,2]
[357903334,1744547435107,-1174.37,0.00019178,2]
[357903335,1744547435117,-1174.37,0.00019178,2]
[357903336,1744547435126,-1174.37,0.00019178,2]
[357903337,1744547435135,-1174.37,0.00019178,2]
[357903338,1744547435145,-1174.37,0.00019178,2]
[357903339,1744547435154,-1174.37,0.00019178,2]
[357903340,1744547435164,-1174.37,0.00019178,2]
[357903341,1744547435175,-1174.37,0.00019178,2]
[357903342,1744547435185,-1174.37,0.00019178,2]
[357903343,1744547435195,-1174.48288811,0.00019178,2]
[357903344,1744547435204,-500.0,0.00019178,2]
[357903345,1744547435213,-500.0,0.00019178,2]
[357903346,1744547435223,-500.0,0.00019178,2]
[357903347,1744547435232,-500.0,0.00019178,2]
[357903348,1744547435242,-500.0,0.00019178,2]
[357903349,1744547435251,-500.0,0.00019178,2]
[357903350,1744547435261,-500.0,0.00019178,2]
[357903351,1744547435271,-500.0,0.00019178,2]
[357903352,1744547435280,-500.0,0.00019178,2]
[357903353,1744547435290,-500.0,0.00019178,2]
[357903354,1744547435299,-504.13,0.00019178,2]
[357903355,1744547435308,-500.0,0.00019178,2]
[357903356,1744547435318,-500.0,0.00019178,2]
[357903357,1744547435327,-504.13,0.00019178,2]
[357903358,1744547435337,-500.0,0.00019178,2]
[357903359,1744547435346,-500.0,0.00019178,2]
[357903360,1744547435355,-504.13,0.00019178,2]
[357903361,1744547435365,-500.0,0.00019178,2]
[357903362,1744547435374,-500.0,0.00019178,2]
[357903363,1744547435384,-504.13,0.00019178,2]
[357903364,1744547435393,-500.0,0.00019178,2]
[357903365,1744547435402,-500.0,0.00019178,2]
[357903366,1744547435411,-504.13,0.00019178,2]
[357903367,1744547435422,-500.0,0.00019178,2]
[357903368,1744547435431,-500.0,0.00019178,2]
[357903369,1744547435441,-500.0,0.00019178,2]
[357903370,1744547435450,-504.13,0.00019178,2]
[357903371,1744547435460,-500.0,0.00019178,2]
[357903372,1744547435469,-500.0,0.00019178,2]
[357903373,1744547435479,-504.13,0.00019178,2]
[357903374,1744547435488,-504.13,0.00019178,2]
[357903375,1744547435497,-500.0,0.00019178,2]
[357903376,1744547435507,-504.13,0.00019178,2]
[357903377,1744547435517,-500.0,0.00019178,2]
[357903378,1744547435527,-500.0,0.00019178,2]
[357903379,1744547435536,-504.13,0.00019178,2]
[357903380,1744547435546,-500.0,0.00019178,2]
[357903381,1744547435555,-517.28296315,0.00019178,2]
[357903382,1744547435565,-500.0,0.00019178,2]
[357903383,1744547435574,-504.13,0.00019178,2]
[357903384,1744547435584,-504.13,0.00019178,2]
[357903385,1744547435594,-500.0,0.00019178,2]
[357903386,1744547435603,-504.13,0.00019178,2]
[357903387,1744547435613,-500.0,0.00019178,2]
[357903388,1744547435622,-504.13,0.00019178,2]
[357903389,1744547435631,-500.0,0.00019178,2]
[357903390,1744547435641,-504.13,0.00019178,2]